{"text_format":"3","workbook":"xlsx","n_sheets":67,"sheets":["1 апреля","Лист1","Лист2","1 апр.","Лист3","Лист4","Лист5","Лист6","Лист7","Лист8","Лист9","Лист10","Лист11","Лист12","Лист13","Лист14","Лист15","Лист16","Лист17","Лист18","Лист19","Лист20","Лист21","Лист22","Лист23","2 апр.","3 апр.","2  мая","1 июля","6 мая","2 июля","Лист24","3 июля","11 апр.","12 апр.","15 апр.","13 мая","14 мая","15 мая","16 мая","17 мая","20 мая","1 августа","2 августа","2 сентября","3 сентября","4 сентября","5 сентября","6 сентября","9 сентября","10 сентября","11 сентября","12 сентября","13 сентября","16 сентября","17 сентября","18 сентября","19 сентября","20 сентября","23 сентября","24 сентября","25 сентября","26 сентября","27 сентября","30 сентября","1 апреля ","2 апреля"],"read":"whole","date_system":"1900"}

{"sheet":"1 апреля","index":0,"n_rows":29,"n_cols":5,"rows_kept":29,"hidden":true}
[]
[null,"Согласно контракту"]
[null,"№2024.617"]
[null,"от 23.12.2023 г."]
[]
[null,null,"10 день"]
[]
[]
[null,"Д/сад","МБДОУ \"ЦРР-д/с № 22\"Алсу\"","День","2024-03-01"]
[]
[null,10,"Блюдо","С 3 лет","до 7 лет"]
[{"$nulls":3},"грамм","ккал"]
[null,"Завтрак/иртәнге аш","Каша геркулесовая молочная с маслом сливочным","180/5",251.91]
[null,null,"Кофейный напиток с молоком","180/6",42.67]
[null,null,"Бутерброд с маслом сливочным","30/5",{"v":111.6,"d":"111.60"}]
[null,"09.00","апельсин","100",{"v":47,"d":"47.0"}]
[null,"Обед/төшке аш","Салат из свеклы с сыром","60",78.42]
[null,null,"Рассольник ленинградский с куриными фрикадельками, со сметаной","180/11/7",117.51]
[null,null,"Котлеты рыбные с маслом сливочным","70/3",144.36]
[null,null,"Макаронные изделия отварные с овощами","130",163.28]
[null,null,"Кисель","180",75.24]
[null,null,"хлеб пшеничный","25",58.75]
[null,null,"Хлеб ржаной","45",{"v":89.1,"d":"89.10"}]
[null,"Полдник/төштән соңгы аш","Молоко кипяченое","180",{"v":96.3,"d":"96.30"}]
[null,null,"Кондитерские изделия (печенье)","20",{"v":90.2,"d":"90.20"}]
[null,"Ужин/кичке аш","Капуста тушеная с мясом ","180",{"v":250.3,"d":"250.30"}]
[null,null,"Напиток из шиповника","180/6",79.38]
[null,null,"Хлеб пшеничный","30",{"v":70.5,"d":"70.50"}]
[{"$nulls":3},"152,36 руб",{"$f":"E28+E27+E26+E25+E24+E23+E22+E21+E20+E19+E18+E17+E16+E15+E14+E13","v":1766.52}]

{"sheet":"Лист1","index":1,"n_rows":0,"n_cols":0,"rows_kept":0,"hidden":true}

{"sheet":"Лист2","index":2,"n_rows":0,"n_cols":0,"rows_kept":0,"hidden":true}

{"sheet":"1 апр.","index":3,"n_rows":0,"n_cols":0,"rows_kept":0,"hidden":true}

{"sheet":"Лист3","index":4,"n_rows":0,"n_cols":0,"rows_kept":0,"hidden":true}

{"sheet":"Лист4","index":5,"n_rows":0,"n_cols":0,"rows_kept":0,"hidden":true}

{"sheet":"Лист5","index":6,"n_rows":0,"n_cols":0,"rows_kept":0,"hidden":true}

{"sheet":"Лист6","index":7,"n_rows":0,"n_cols":0,"rows_kept":0,"hidden":true}

{"sheet":"Лист7","index":8,"n_rows":0,"n_cols":0,"rows_kept":0,"hidden":true}

{"sheet":"Лист8","index":9,"n_rows":0,"n_cols":0,"rows_kept":0,"hidden":true}

{"sheet":"Лист9","index":10,"n_rows":0,"n_cols":0,"rows_kept":0,"hidden":true}

{"sheet":"Лист10","index":11,"n_rows":0,"n_cols":0,"rows_kept":0,"hidden":true}

{"sheet":"Лист11","index":12,"n_rows":0,"n_cols":0,"rows_kept":0,"hidden":true}

{"sheet":"Лист12","index":13,"n_rows":0,"n_cols":0,"rows_kept":0,"hidden":true}

{"sheet":"Лист13","index":14,"n_rows":0,"n_cols":0,"rows_kept":0,"hidden":true}

{"sheet":"Лист14","index":15,"n_rows":0,"n_cols":0,"rows_kept":0,"hidden":true}

{"sheet":"Лист15","index":16,"n_rows":0,"n_cols":0,"rows_kept":0,"hidden":true}

{"sheet":"Лист16","index":17,"n_rows":0,"n_cols":0,"rows_kept":0,"hidden":true}

{"sheet":"Лист17","index":18,"n_rows":0,"n_cols":0,"rows_kept":0,"hidden":true}

{"sheet":"Лист18","index":19,"n_rows":0,"n_cols":0,"rows_kept":0,"hidden":true}

{"sheet":"Лист19","index":20,"n_rows":0,"n_cols":0,"rows_kept":0,"hidden":true}

{"sheet":"Лист20","index":21,"n_rows":0,"n_cols":0,"rows_kept":0,"hidden":true}

{"sheet":"Лист21","index":22,"n_rows":0,"n_cols":0,"rows_kept":0,"hidden":true}

{"sheet":"Лист22","index":23,"n_rows":0,"n_cols":0,"rows_kept":0,"hidden":true}

{"sheet":"Лист23","index":24,"n_rows":0,"n_cols":0,"rows_kept":0,"hidden":true}

{"sheet":"2 апр.","index":25,"n_rows":28,"n_cols":5,"rows_kept":28,"hidden":true}
[]
[null,"Согласно контракту"]
[null,"№2024.617"]
[null,"от 23.12.2023 г."]
[]
[null,null,"2 день"]
[]
[]
[null,"Д/сад","МБДОУ \"ЦРР-д/с № 22\"Алсу\"","День","2024-04-02"]
[]
[null,10,"Блюдо","С 3 лет","до 7 лет"]
[{"$nulls":3},"грамм","ккал"]
[null,"Завтрак/иртәнге аш","Каша полбяная молочная с маслом сливочным","180/3",202.64]
[null,null,"какао с молоком","180",58.83]
[null,null,"Бутерброд с сыром, маслом сливочным","30/5/5",128.77]
[null,"09.00","Сок","180",94.4]
[null,"Обед/төшке аш","Салат из картофеля с солеными огурцами","60",66.84]
[null,null,"Борщ со свежей капустой, картофелем на курином б-не, с куриными фрикадельками, со сметаной","180/10/7",106.63]
[null,null,"Фрикадельки куриные в молочном соусе","50/25",{"v":136.3,"d":"136.30"}]
[null,null,"Макароны отварны с маслом сливочным","130/3",155.22]
[null,null,"Компот из свежих яблок","180",55.26]
[null,null,"Хлеб пшеничный","25",58.75]
[null,null,"Хлеб ржаной","45",{"v":89.1,"d":"89.10"}]
[null,"Полдник/төштән соңгы аш","Ряженка","180",{"v":91.8,"d":"91.80"}]
[null,null,"Булочка дорожная","50",{"v":165.5,"d":"165.50"}]
[null,"Ужин/кичке аш","Запеканка творожная с повидлом","120/30",{"v":418.5,"d":"418.50"}]
[null,null,"Чай с сахаром и лимоном","180/6/7",26.48]
[{"$nulls":3},"152,36 руб",{"$f":"E27+E26+E25+E24+E23+E22+E21+E20+E18+E19+E17+E16+E15+E14","v":{"v":1652.3799999999997,"d":"1652.38"}}]

{"sheet":"3 апр.","index":26,"n_rows":29,"n_cols":5,"rows_kept":29,"hidden":true}
[]
[null,"Согласно контракту"]
[null,"№2024.617"]
[null,"от 23.12.2023 г."]
[]
[null,null,"3 день"]
[]
[]
[null,"Д/сад","МБДОУ \"ЦРР-д/с № 22\"Алсу\"","День","2024-04-03"]
[]
[null,10,"Блюдо","С 3 лет","до 7 лет"]
[{"$nulls":3},"грамм","ккал"]
[null,"Завтрак/иртәнге аш","Каша кукурузная молочная с маслом сливочным","180/5",274.16]
[null,null,"Чай с сахаром и молоком","180/6",72.7]
[null,null,"Бутерброд с маслом сливочным","30/5",{"v":111.6,"d":"111.60"}]
[null,"09.00","Яблоко","100",{"v":47,"d":"47.0"}]
[null,"Обед/төшке аш","Салат из припущенной моркови с яблоками60","60",24.24]
[null,null,"Суп картофельный гороховый на мясном б-не с мясом","180/10",121.57]
[null,null,"плов из отварной говядины","200",{"v":396,"d":"396.00"}]
[null,null,"Компот из урюка","180",{"v":68.2,"d":"68.20"}]
[null,null,"Хлеб пшеничный","25",58.75]
[null,null,"Хлеб ржаной","45",{"v":89.1,"d":"89.10"}]
[null,"Полдник/төштән соңгы аш","Молоко кипяченое","180",75.24]
[null,null,"Печенье","20",{"v":89.1,"d":"89.10"}]
[null,"Ужин/кичке аш","Фрикадельки рыбный отварные","80",{"v":88,"d":"88.00"}]
[null,null,"Картофель тушеный с овощами в соусе","140",{"v":201.6,"d":"201.60"}]
[null,null,"Напиток из шиповника","180/6",79.38]
[null,null,"Хлеб пшеничный","30",{"v":70.5,"d":"70.50"}]
[{"$nulls":3},"152,36 руб",{"$f":"E28+E27+E26+E25+E24+E23+E22+E21+E20+E19+E18+E17+E16+E15+E14+E13","v":1867.14}]

{"sheet":"2  мая","index":27,"n_rows":28,"n_cols":5,"rows_kept":28,"hidden":true}
[]
[null,"Согласно контракту"]
[null,"№2024.617"]
[null,"от 23.12.2023 г."]
[]
[]
[null,null,"4 день"]
[]
[null,"Д/сад","МБДОУ \"ЦРР-д/с № 22\"Алсу\"","День","2024-05-02"]
[]
[null,10,"Блюдо","С 3 лет","до 7 лет"]
[{"$nulls":3},"грамм","ккал"]
[null,"Завтрак/иртәнге аш","Каша ячневая молочная с маслом сливочным","180/3",223.41]
[null,null,"Кофейный напиток с молоком","180/6",42.67]
[null,null,"Бутерброд с маслом сливочным, повидлом","30/5/10",{"v":119.8,"d":"119.80"}]
[null,"09.00","Сок","180",94.4]
[null,"Обед/төшке аш","Салат из зеленого горошка к/с","50",{"v":41.8,"d":"41.80"}]
[null,null,"Суп картофельный с пшенной крупой на курином б-не, с мясом птицы","180/10",76.57]
[null,null,"птица, тушенная с соусе с овощами","200",{"v":264,"d":"264.00"}]
[null,null,"Компот из изюма и яблок","180",{"v":108,"d":"108.00"}]
[null,null,"Хлеб пшеничный","225",58.75]
[null,null,"Хлеб ржаной","45",{"v":89.1,"d":"89.10"}]
[null,"Полдник/төштән соңгы аш","Кефир","180",{"v":90,"d":"90.00"}]
[null,null,"Кондитерские изделия (печенье)","20",{"v":90.2,"d":"90.20"}]
[null,"Ужин/кичке аш","Омлет натуральный с сыром","150",{"v":347.5,"d":"347.50"}]
[null,null,"Чай с сахаром","180/6",{"v":24.1,"d":"24.10"}]
[null,null,"Хлеб пшеничный","30",{"v":70.5,"d":"70.50"}]
[{"$nulls":3},"152,36 руб",{"$f":"E27+E26+E25+E24+E23+E22+E21+E20+E19+E18+E17+E16+E15+E14+E13","v":{"v":1740.8000000000002,"d":"1740.80"}}]

{"sheet":"1 июля","index":28,"n_rows":28,"n_cols":5,"rows_kept":28,"hidden":true}
[]
[null,"Согласно контракту"]
[null,"№2024.617"]
[null,"от 23.12.2023 г."]
[]
[]
[null,null,"6 день"]
[]
[null,"Д/сад","МБДОУ \"ЦРР-д/с № 22\"Алсу\""]
[]
[null,10,"Блюдо","С 3 лет","до 7 лет"]
[{"$nulls":3},"грамм","ккал"]
[null,"Завтрак/иртәнге аш","Каша пшенная молочная с маслом сливочным","180/3",208.76]
[null,null,"Чай с молоком и сахаром","180/6",75.76]
[null,null,"Бутерброд с маслом сливочным","30/5",{"v":111.6,"d":"111.60"}]
[null,"09.00","Сок","180",94.4]
[null,"Обед/төшке аш","Салат картофельный с морковуью и кукурузой к/с","60",24.24]
[null,null,"Суп из овощей на курином б-не, с мясными фрикадельками, со сметаной","180/11/7",101.49]
[null,null,"Ежики куриные в сметанно-томатномном соусе","50/25",123.03]
[null,null,"вермишель отварной","130",135.46]
[null,null,"Напиток из сухофруктов","180",{"v":87.5,"d":"87.50"}]
[null,null,"Хлеб пшеничный","25",58.75]
[null,null,"Хлеб ржаной","45",{"v":89.1,"d":"89.10"}]
[null,"Полдник/төштән соңгы аш","Катык","180",91.86]
[null,null,"Булочка с сахаром","50",170.67]
[null,"Ужин/кичке аш","Запеканка творожная с повидлом","120/30",{"v":418.5,"d":"418.50"}]
[null,null,"Напиок из шиповника","180/5",{"v":24.1,"d":"24.10"}]
[{"$nulls":3},"152,36 руб",{"$f":"E27+E26+E25+E24+E23+E22+E20+E19+E18+E17+E16+E15+E14+E13","v":1727.72}]

{"sheet":"6 мая","index":29,"n_rows":28,"n_cols":5,"rows_kept":28,"hidden":true}
[]
[null,"Согласно контракту"]
[null,"№2024.617"]
[null,"от 23.12.2023 г."]
[]
[]
[null,null,"6 день"]
[]
[null,"Д/сад","МБДОУ \"ЦРР-д/с № 22\"Алсу\"","День","2024-05-06"]
[]
[null,10,"Блюдо","С 3 лет","до 7 лет"]
[{"$nulls":3},"грамм","ккал"]
[null,"Завтрак/иртәнге аш","Каша пшенная молочная с маслом сливочным","180/3",208.76]
[null,null,"Чай с молоком и сахаром","180/6",75.76]
[null,null,"Бутерброд с маслом сливочным","30/5",{"v":111.6,"d":"111.60"}]
[null,"09.00","Сок","180",94.4]
[null,"Обед/төшке аш","Салат картофельный с морковуью и кукурузой к/с","60",24.24]
[null,null,"Суп из овощей на курином б-не, с мясными фрикадельками, со сметаной","180/11/7",101.49]
[null,null,"Ежики куриные в сметанно-томатномном соусе","50/25",123.03]
[null,null,"вермишель отварной","130",135.46]
[null,null,"Напиток из сухофруктов","180",{"v":87.5,"d":"87.50"}]
[null,null,"Хлеб пшеничный","25",58.75]
[null,null,"Хлеб ржаной","45",{"v":89.1,"d":"89.10"}]
[null,"Полдник/төштән соңгы аш","Катык","180",91.86]
[null,null,"Булочка с сахаром","50",170.67]
[null,"Ужин/кичке аш","Запеканка творожная с повидлом","120/30",{"v":418.5,"d":"418.50"}]
[null,null,"Напиок из шиповника","180/5",{"v":24.1,"d":"24.10"}]
[{"$nulls":3},"152,36 руб",{"$f":"E27+E26+E25+E24+E23+E22+E20+E19+E18+E17+E16+E15+E14+E13","v":1727.72}]

{"sheet":"2 июля","index":30,"n_rows":31,"n_cols":5,"rows_kept":31,"hidden":true}
[]
[null,"Согласно контракту"]
[null,"№2024.617"]
[null,"от 23.12.2023 г."]
[]
[null,null,"7 день"]
[]
[]
[null,"Д/сад","МБДОУ \"ЦРР-д/с № 22\"Алсу\""]
[]
[null,10,"Блюдо","С 3 лет","до 7 лет"]
[{"$nulls":3},"грамм","ккал"]
[null,"Завтрак/иртәнге аш","Каша кукурузная молочная с маслом сливочным","180/5",274.16]
[null,null,"Кофейный напиток с молоком ","180",42.67]
[null,null,"Бутерброд с маслом сливочным","30/5",{"v":111.6,"d":"111.60"}]
[null,null,"Сыр порционно","10",34.33]
[null,"09.00","Сок","180",94.4]
[null,"Обед/төшке аш","Салат из белокачанной капусты","60",53.88]
[null,null,"Суп картофельный с клецками на мясном б-не с мясом","180/10",121.66]
[null,null,"Гуляш из отварной говядины","40/40",{"v":131.2,"d":"131.20"}]
[null,null,"Пюре картофельное","140",{"v":128.1,"d":"128.10"}]
[null,null,"Компот из свежих фруктов","180",55.26]
[null,null,"Хлеб пшеничный","25",58.75]
[null,null,"Хлеб ржаной","45",{"v":89.1,"d":"89.10"}]
[null,"Полдник/төштән соңгы аш","Кефир","180",{"v":90,"d":"90.00"}]
[null,null,"мармелад","10",{"v":83,"d":"83.00"}]
[null,"Ужин/кичке аш","Биточки-рубленные из рыбы","70",{"v":124.6,"d":"124.60"}]
[null,null,"Каша гречневая рассыпчатая с овощами с маслом сливочным","130/3",181.83]
[null,null,"Чай с сахаром и лимоном","180/6/7",26.48]
[null,null,"Хлеб пшеничный","30",{"v":70.5,"d":"70.50"}]
[{"$nulls":3},"152,36 руб",{"$f":"E29+E27+E26+E25+E24+E23+E21+E20+E19+E18+E17+E15+E14+E13","v":{"v":1429.6000000000001,"d":"1429.60"}}]

{"sheet":"Лист24","index":31,"n_rows":0,"n_cols":0,"rows_kept":0,"hidden":true}

{"sheet":"3 июля","index":32,"n_rows":29,"n_cols":5,"rows_kept":29,"hidden":true}
[]
[null,"Согласно контракту"]
[null,"№2024.617"]
[null,"от 23.12.2023 г."]
[]
[]
[null,null,"8 день"]
[]
[null,"Д/сад","МБДОУ \"ЦРР-д/с № 22\"Алсу\""]
[]
[null,10,"Блюдо","С 3 лет","до 7 лет"]
[{"$nulls":3},"грамм","ккал"]
[null,"Завтрак/иртәнге аш","Каша манная молочная с маслом сливочным","180/5",{"v":199.5,"d":"199.50"}]
[null,null,"Какао с молоком ","180/6",58.83]
[null,null,"Бутерброд с маслом сливочным","30/5",{"v":111.6,"d":"111.60"}]
[null,"09.00","Сок","180",{"v":96,"d":"96.0"}]
[null,"Обед/төшке аш","Салат из моркови","60",62.34]
[null,null,"Щи со свежей капустой с картофелем на курином б-не, с куриными фрикадельками и со сметаной","180/11/7",104.59]
[null,null,"Биточки домашние","70",{"v":225.4,"d":"225.40"}]
[null,null,"Рис отварной рассыпчатый с маслом сливочным","130/20",192.01]
[null,null,"Компот из изюма","180",{"v":62.1,"d":"62.10"}]
[null,null,"Хлеб пшеничный","25",58.75]
[null,null,"Хлеб ржаной","45",{"v":89.1,"d":"89.10"}]
[null,"Полдник/төштән соңгы аш","Молоко кипяченое","180",{"v":96.3,"d":"96.30"}]
[null,null,"Кондитерские изделия (печенье)","20",{"v":90.2,"d":"90.20"}]
[null,"Ужин/кичке аш","Омлет натуральный","150",335.23]
[null,null,"Чай с сахаром","180/6",{"v":24.1,"d":"24.10"}]
[null,null,"Хлеб пшеничный","30",{"v":70.5,"d":"70.50"}]
[{"$nulls":3},"152,36 руб",{"$f":"E27+E26+E25+E24+E23+E22+E20+E19+E18+E17+E16+E15+E14+E13","v":{"v":1743.9499999999998,"d":"1743.95"}}]

{"sheet":"11 апр.","index":33,"n_rows":29,"n_cols":5,"rows_kept":29,"hidden":true}
[]
[null,"Согласно контракту"]
[null,"№2024.617"]
[null,"от 23.12.2023 г."]
[]
[null,null,"10 день"]
[]
[]
[null,"Д/сад","МБДОУ \"ЦРР-д/с № 22\"Алсу\"","День","2024-04-11"]
[]
[null,10,"Блюдо","С 3 лет","до 7 лет"]
[{"$nulls":3},"грамм","ккал"]
[null,"Завтрак/иртәнге аш","Каша геркулесовая молочная с маслом сливочным","180/5",251.91]
[null,null,"Кофейный напиток с молоком","180/6",42.67]
[null,null,"Бутерброд с маслом сливочным","30/5",{"v":111.6,"d":"111.60"}]
[null,"09.00","апельсин","100",{"v":47,"d":"47.0"}]
[null,"Обед/төшке аш","Салат из свеклы с сыром","60",78.42]
[null,null,"Рассольник ленинградский с куриными фрикадельками, со сметаной","180/11/7",117.51]
[null,null,"Котлеты рыбные с маслом сливочным","70/3",144.36]
[null,null,"Макаронные изделия отварные с овощами","130",163.28]
[null,null,"Кисель","180",75.24]
[null,null,"хлеб пшеничный","25",58.75]
[null,null,"Хлеб ржаной","45",{"v":89.1,"d":"89.10"}]
[null,"Полдник/төштән соңгы аш","Молоко кипяченое","180",{"v":96.3,"d":"96.30"}]
[null,null,"Кондитерские изделия (печенье)","20",{"v":90.2,"d":"90.20"}]
[null,"Ужин/кичке аш","Капуста тушеная с мясом ","180",{"v":250.3,"d":"250.30"}]
[null,null,"Напиток из шиповника","180/6",79.38]
[null,null,"Хлеб пшеничный","30",{"v":70.5,"d":"70.50"}]
[{"$nulls":3},"152,36 руб",{"$f":"E28+E27+E26+E25+E24+E23+E22+E21+E20+E19+E18+E17+E16+E15+E14+E13","v":1766.52}]

{"sheet":"12 апр.","index":34,"n_rows":30,"n_cols":5,"rows_kept":30,"hidden":true}
[]
[null,"Согласно контракту"]
[null,"№2024.617"]
[null,"от 23.12.2023 г."]
[]
[]
[null,null,"1 день"]
[]
[null,"Д/сад","МБДОУ \"ЦРР-д/с № 22\"Алсу\"","День","2024-04-12"]
[]
[null,10,"Блюдо","С 3 лет","до 7 лет"]
[{"$nulls":3},"грамм","ккал"]
[null,"Завтрак/иртәнге аш","Каша Дружба молочная с маслом сливочным","180/5",{"v":207.6,"d":"207.60"}]
[null,null,"Кофейный напиток с молоком","180/6",42.67]
[null,null,"Бутерброд с маслом сливочным","30/5",{"v":111.6,"d":"111.60"}]
[null,"09.00","Яблоко","100",{"v":47,"d":"47.0"}]
[null,"Обед/төшке аш","Икра кабачковая","50",{"v":34.8,"d":"34.80"}]
[null,null,"Суп вермишелевый с картофелем с мясными фрикадельками","180/15",114.56]
[null,null,"Котлеты рубленные из говядины","70",211.06]
[null,null,"Каша гречневая вязкая с маслом сливочным","130/3",145.86]
[null,null,"Напиток из сухофруктов","180",68.18]
[null,null,"Хлеб ржаной","45",{"v":89.1,"d":"89.10"}]
[null,null,"Хлеб пшеничный","25",58.75]
[null,"Полдник/төштән соңгы аш","Кефир","180",{"v":90,"d":"90.00"}]
[null,null,"Вафли","20",{"v":192,"d":"192.00"}]
[null,"Ужин/кичке аш","Котлеты рыбные ","70",124.56]
[null,null,"Пюре картофельное","140",{"v":128.1,"d":"128.10"}]
[null,null,"Чай с сахаром","180/6",{"v":24.1,"d":"24.10"}]
[null,null,"Хлеб пшеничный","30",{"v":70.5,"d":"70.50"}]
[{"$nulls":3},"152,36 руб",{"$f":"E29+E28+E27+E26+E25+E24+E23+E22+E21+E20+E19+E18+E17+E16+E15+E14+E13","v":{"v":1760.4399999999998,"d":"1760.44"}}]

{"sheet":"15 апр.","index":35,"n_rows":28,"n_cols":5,"rows_kept":28,"hidden":true}
[]
[null,"Согласно контракту"]
[null,"№2024.617"]
[null,"от 23.12.2023 г."]
[]
[null,null,"2 день"]
[]
[]
[null,"Д/сад","МБДОУ \"ЦРР-д/с № 22\"Алсу\"","День","2024-04-15"]
[]
[null,10,"Блюдо","С 3 лет","до 7 лет"]
[{"$nulls":3},"грамм","ккал"]
[null,"Завтрак/иртәнге аш","Каша полбяная молочная с маслом сливочным","180/3",202.64]
[null,null,"какао с молоком","180",58.83]
[null,null,"Бутерброд с сыром, маслом сливочным","30/5/5",128.77]
[null,"09.00","Сок","180",94.4]
[null,"Обед/төшке аш","Салат из картофеля с солеными огурцами","60",66.84]
[null,null,"Борщ со свежей капустой, картофелем на курином б-не, с куриными фрикадельками, со сметаной","180/10/7",106.63]
[null,null,"Фрикадельки куриные в молочном соусе","50/25",{"v":136.3,"d":"136.30"}]
[null,null,"Макароны отварны с маслом сливочным","130/3",155.22]
[null,null,"Компот из свежих яблок","180",55.26]
[null,null,"Хлеб пшеничный","25",58.75]
[null,null,"Хлеб ржаной","45",{"v":89.1,"d":"89.10"}]
[null,"Полдник/төштән соңгы аш","Ряженка","180",{"v":91.8,"d":"91.80"}]
[null,null,"Булочка дорожная","50",{"v":165.5,"d":"165.50"}]
[null,"Ужин/кичке аш","Запеканка творожная с повидлом","120/30",{"v":418.5,"d":"418.50"}]
[null,null,"Чай с сахаром и лимоном","180/6/7",26.48]
[{"$nulls":3},"152,36 руб",{"$f":"E27+E26+E25+E24+E23+E22+E21+E20+E18+E19+E17+E16+E15+E14","v":{"v":1652.3799999999997,"d":"1652.38"}}]

{"sheet":"13 мая","index":36,"n_rows":29,"n_cols":5,"rows_kept":29,"hidden":true}
[]
[null,"Согласно контракту"]
[null,"№2024.617"]
[null,"от 23.12.2023 г."]
[]
[null,null,"3 день"]
[]
[]
[null,"Д/сад","МБДОУ \"ЦРР-д/с № 22\"Алсу\"","День","2024-05-13"]
[]
[null,10,"Блюдо","С 3 лет","до 7 лет"]
[{"$nulls":3},"грамм","ккал"]
[null,"Завтрак/иртәнге аш","Каша кукурузная молочная с маслом сливочным","180/5",274.16]
[null,null,"Чай с сахаром и молоком","180/6",72.7]
[null,null,"Бутерброд с маслом сливочным","30/5",{"v":111.6,"d":"111.60"}]
[null,"09.00","Яблоко","100",{"v":47,"d":"47.0"}]
[null,"Обед/төшке аш","Салат из припущенной моркови с яблоками60","60",24.24]
[null,null,"Суп картофельный гороховый на мясном б-не с мясом","180/10",121.57]
[null,null,"плов из отварной говядины","200",{"v":396,"d":"396.00"}]
[null,null,"Компот из урюка","180",{"v":68.2,"d":"68.20"}]
[null,null,"Хлеб пшеничный","25",58.75]
[null,null,"Хлеб ржаной","45",{"v":89.1,"d":"89.10"}]
[null,"Полдник/төштән соңгы аш","Молоко кипяченое","180",75.24]
[null,null,"Печенье","20",{"v":89.1,"d":"89.10"}]
[null,"Ужин/кичке аш","Фрикадельки рыбный отварные","80",{"v":88,"d":"88.00"}]
[null,null,"Картофель тушеный с овощами в соусе","140",{"v":201.6,"d":"201.60"}]
[null,null,"Напиток из шиповника","180/6",79.38]
[null,null,"Хлеб пшеничный","30",{"v":70.5,"d":"70.50"}]
[{"$nulls":3},"152,36 руб",{"$f":"E28+E27+E26+E25+E24+E23+E22+E21+E20+E19+E18+E17+E16+E15+E14+E13","v":1867.14}]

{"sheet":"14 мая","index":37,"n_rows":28,"n_cols":5,"rows_kept":28,"hidden":true}
[]
[null,"Согласно контракту"]
[null,"№2024.617"]
[null,"от 23.12.2023 г."]
[]
[]
[null,null,"4 день"]
[]
[null,"Д/сад","МБДОУ \"ЦРР-д/с № 22\"Алсу\"","День","2024-05-14"]
[]
[null,10,"Блюдо","С 3 лет","до 7 лет"]
[{"$nulls":3},"грамм","ккал"]
[null,"Завтрак/иртәнге аш","Каша ячневая молочная с маслом сливочным","180/3",223.41]
[null,null,"Кофейный напиток с молоком","180/6",42.67]
[null,null,"Бутерброд с маслом сливочным, повидлом","30/5/10",{"v":119.8,"d":"119.80"}]
[null,"09.00","Сок","180",94.4]
[null,"Обед/төшке аш","Салат из зеленого горошка к/с","50",{"v":41.8,"d":"41.80"}]
[null,null,"Суп картофельный с пшенной крупой на курином б-не, с мясом птицы","180/10",76.57]
[null,null,"птица, тушенная с соусе с овощами","200",{"v":264,"d":"264.00"}]
[null,null,"Компот из изюма и яблок","180",{"v":108,"d":"108.00"}]
[null,null,"Хлеб пшеничный","225",58.75]
[null,null,"Хлеб ржаной","45",{"v":89.1,"d":"89.10"}]
[null,"Полдник/төштән соңгы аш","Кефир","180",{"v":90,"d":"90.00"}]
[null,null,"Кондитерские изделия (печенье)","20",{"v":90.2,"d":"90.20"}]
[null,"Ужин/кичке аш","Омлет натуральный с сыром","150",{"v":347.5,"d":"347.50"}]
[null,null,"Чай с сахаром","180/6",{"v":24.1,"d":"24.10"}]
[null,null,"Хлеб пшеничный","30",{"v":70.5,"d":"70.50"}]
[{"$nulls":3},"152,36 руб",{"$f":"E27+E26+E25+E24+E23+E22+E21+E20+E19+E18+E17+E16+E15+E14+E13","v":{"v":1740.8000000000002,"d":"1740.80"}}]

{"sheet":"15 мая","index":38,"n_rows":27,"n_cols":5,"rows_kept":27,"hidden":true}
[]
[null,"Согласно контракту"]
[null,"№2024.617"]
[null,"от 23.12.2023 г."]
[]
[null,null,"5 день"]
[]
[]
[null,"Д/сад","МБДОУ \"ЦРР-д/с № 22\"Алсу\"","День","2024-05-15"]
[]
[null,10,"Блюдо","С 3 лет","до 7 лет"]
[{"$nulls":3},"грамм","ккал"]
[null,"Завтрак/иртәнге аш","Суп молочный с геркулесовой крупой ","200",{"v":71.2,"d":"71.20"}]
[null,null,"какао с молоком","180",58.83]
[null,null,"Бутерброд с сыром, маслом сливочным","30/5/5",128.77]
[null,"09.00","Сок","180",94.4]
[null,"Обед/төшке аш","Салат из свеклы отварной","50",{"v":46.4,"d":"46.40"}]
[null,null,"Рассольник домашний на курином б-не, с куриными фрикадельками со сметаной","180/11/5",119.17]
[null,null,"Запеканка картофельная с мясом птицы со сметанным соусом","150/30",243.48]
[null,null,"Кисель","180",75.24]
[null,null,"Хлеб пшеничный","25",58.75]
[null,null,"Хлеб ржаной","45",{"v":89.1,"d":"89.10"}]
[null,"Полдник/төштән соңгы аш","Молоко кипяченое","180",75.24]
[null,null,"Печенье","20",{"v":89.1,"d":"89.10"}]
[null,"Ужин/кичке аш","Эч-почмак с говядиной","100",414.29]
[null,null,"Чай с сахаром и лимоном","180/6/7",26.48]
[{"$nulls":3},"152,36 руб",{"$f":"E26+E25+E24+E23+E22+E21++E19+E18+E17+E16+E15+E14+E13","v":{"v":1515.2100000000003,"d":"1515.21"}}]

{"sheet":"16 мая","index":39,"n_rows":28,"n_cols":5,"rows_kept":28,"hidden":true}
[]
[null,"Согласно контракту"]
[null,"№2024.617"]
[null,"от 23.12.2023 г."]
[]
[]
[null,null,"6 день"]
[]
[null,"Д/сад","МБДОУ \"ЦРР-д/с № 22\"Алсу\"","День","2024-05-16"]
[]
[null,10,"Блюдо","С 3 лет","до 7 лет"]
[{"$nulls":3},"грамм","ккал"]
[null,"Завтрак/иртәнге аш","Каша пшенная молочная с маслом сливочным","180/3",208.76]
[null,null,"Чай с молоком и сахаром","180/6",75.76]
[null,null,"Бутерброд с маслом сливочным","30/5",{"v":111.6,"d":"111.60"}]
[null,"09.00","Сок","180",94.4]
[null,"Обед/төшке аш","Салат картофельный с морковуью и кукурузой к/с","60",24.24]
[null,null,"Суп из овощей на курином б-не, с мясными фрикадельками, со сметаной","180/11/7",101.49]
[null,null,"Ежики куриные в сметанно-томатномном соусе","50/25",123.03]
[null,null,"вермишель отварной","130",135.46]
[null,null,"Напиток из сухофруктов","180",{"v":87.5,"d":"87.50"}]
[null,null,"Хлеб пшеничный","25",58.75]
[null,null,"Хлеб ржаной","45",{"v":89.1,"d":"89.10"}]
[null,"Полдник/төштән соңгы аш","Катык","180",91.86]
[null,null,"Булочка с сахаром","50",170.67]
[null,"Ужин/кичке аш","Запеканка творожная с повидлом","120/30",{"v":418.5,"d":"418.50"}]
[null,null,"Напиок из шиповника","180/5",{"v":24.1,"d":"24.10"}]
[{"$nulls":3},"152,36 руб",{"$f":"E27+E26+E25+E24+E23+E22+E20+E19+E18+E17+E16+E15+E14+E13","v":1727.72}]

{"sheet":"17 мая","index":40,"n_rows":31,"n_cols":5,"rows_kept":31,"hidden":true}
[]
[null,"Согласно контракту"]
[null,"№2024.617"]
[null,"от 23.12.2023 г."]
[]
[null,null,"7 день"]
[]
[]
[null,"Д/сад","МБДОУ \"ЦРР-д/с № 22\"Алсу\"","День","2024-05-17"]
[]
[null,10,"Блюдо","С 3 лет","до 7 лет"]
[{"$nulls":3},"грамм","ккал"]
[null,"Завтрак/иртәнге аш","Каша кукурузная молочная с маслом сливочным","180/5",274.16]
[null,null,"Кофейный напиток с молоком ","180",42.67]
[null,null,"Бутерброд с маслом сливочным","30/5",{"v":111.6,"d":"111.60"}]
[null,null,"Сыр порционно","10",34.33]
[null,"09.00","Сок","180",94.4]
[null,"Обед/төшке аш","Салат из квашенной капусты","60",53.88]
[null,null,"Суп картофельный с клецками на мясном б-не с мясом","180/10",121.66]
[null,null,"Гуляш из отварной говядины","40/40",{"v":131.2,"d":"131.20"}]
[null,null,"Пюре картофельное","140",{"v":128.1,"d":"128.10"}]
[null,null,"Компот из свежих фруктов","180",55.26]
[null,null,"Хлеб пшеничный","25",58.75]
[null,null,"Хлеб ржаной","45",{"v":89.1,"d":"89.10"}]
[null,"Полдник/төштән соңгы аш","Кефир","180",{"v":90,"d":"90.00"}]
[null,null,"мармелад","10",{"v":83,"d":"83.00"}]
[null,"Ужин/кичке аш","Биточки-рубленные из рыбы","70",{"v":124.6,"d":"124.60"}]
[null,null,"Каша гречневая рассыпчатая с овощами с маслом сливочным","130/3",181.83]
[null,null,"Чай с сахаром и лимоном","180/6/7",26.48]
[null,null,"Хлеб пшеничный","30",{"v":70.5,"d":"70.50"}]
[{"$nulls":3},"152,36 руб",{"$f":"E29+E27+E26+E25+E24+E23+E21+E20+E19+E18+E17+E15+E14+E13","v":{"v":1429.6000000000001,"d":"1429.60"}}]

{"sheet":"20 мая","index":41,"n_rows":29,"n_cols":5,"rows_kept":29,"hidden":true}
[]
[null,"Согласно контракту"]
[null,"№2024.617"]
[null,"от 23.12.2023 г."]
[]
[]
[null,null,"8 день"]
[]
[null,"Д/сад","МБДОУ \"ЦРР-д/с № 22\"Алсу\"","День","2024-05-20"]
[]
[null,10,"Блюдо","С 3 лет","до 7 лет"]
[{"$nulls":3},"грамм","ккал"]
[null,"Завтрак/иртәнге аш","Каша манная молочная с маслом сливочным","180/5",{"v":199.5,"d":"199.50"}]
[null,null,"Какао с молоком ","180/6",58.83]
[null,null,"Бутерброд с маслом сливочным","30/5",{"v":111.6,"d":"111.60"}]
[null,"09.00","Апельсин","100",{"v":47,"d":"47.0"}]
[null,"Обед/төшке аш","Икра кабачковая","50",62.34]
[null,null,"Щи со свежей капустой с картофелем на курином б-не, с куриными фрикадельками и со сметаной","180/11/7",104.59]
[null,null,"Биточки домашние","70",{"v":225.4,"d":"225.40"}]
[null,null,"Рис отварной рассыпчатый с маслом сливочным","130/20",192.01]
[null,null,"Компот из изюма","180",{"v":62.1,"d":"62.10"}]
[null,null,"Хлеб пшеничный","25",58.75]
[null,null,"Хлеб ржаной","45",{"v":89.1,"d":"89.10"}]
[null,"Полдник/төштән соңгы аш","Молоко кипяченое","180",{"v":96.3,"d":"96.30"}]
[null,null,"Кондитерские изделия (печенье)","20",{"v":90.2,"d":"90.20"}]
[null,"Ужин/кичке аш","Омлет натуральный","150",335.23]
[null,null,"Чай с сахаром","180/6",{"v":24.1,"d":"24.10"}]
[null,null,"Хлеб пшеничный","30",{"v":70.5,"d":"70.50"}]
[{"$nulls":3},"152,36 руб",{"$f":"E27+E26+E25+E24+E23+E22+E20+E19+E18+E17+E16+E15+E14+E13","v":{"v":1694.9499999999998,"d":"1694.95"}}]

{"sheet":"1 августа","index":42,"n_rows":28,"n_cols":5,"rows_kept":28,"hidden":true}
[]
[null,"Согласно контракту"]
[null,"№2024.617"]
[null,"от 23.12.2023 г."]
[]
[]
[null,null,"9 день"]
[]
[null,"Д/сад","МБДОУ \"ЦРР-д/с № 22\"Алсу\""]
[]
[null,10,"Блюдо","С 3 лет","до 7 лет"]
[{"$nulls":3},"грамм","ккал"]
[null,"Завтрак/иртәнге аш","Каша пшеничная молочная с маслом сливочным","180/3",241.16]
[null,null,"Чай с молоком и сахаром","180/6",75.76]
[null,null,"Бутерброд с сыром,  маслом сливочным","30/5/5",128.77]
[null,"09.00","Яблоко","100",{"v":47,"d":"47.0"}]
[null,"Обед/төшке аш","огурцы соленые","50",53.88]
[null,null,"суп лапша домашняя на курином б-не, с мясом птицы","180/10",114.78]
[null,null,"Жаркое из птицы по домашнему","180",303.43]
[null,null,"Напиток из сухофруктов","180",{"v":87.5,"d":"87.50"}]
[null,null,"Хлеб пшеничный","25",58.75]
[null,null,"Хлеб ржаной","45",{"v":89.1,"d":"89.10"}]
[null,"Полдник/төштән соңгы аш","кисломолочный напиток","180",{"v":96.3,"d":"96.30"}]
[null,null,"Кондитерские изделия (печенье)","20",{"v":90.2,"d":"90.20"}]
[null,"Ужин/кичке аш","Ватрушка с творогом","90",404.05]
[null,null,"чай с сахаром и лимоном","180/6/7",26.48]
[]
[{"$nulls":3},"152,36 руб",{"$f":"E26+E25+E24+E23+E22+E21+E20+E19+E18+E17+E16+E15+E14+E13","v":1817.16}]

{"sheet":"2 августа","index":43,"n_rows":29,"n_cols":5,"rows_kept":29,"hidden":true}
[]
[null,"Согласно контракту"]
[null,"№2024.617"]
[null,"от 23.12.2023 г."]
[]
[null,null,"10 день"]
[]
[]
[null,"Д/сад","МБДОУ \"ЦРР-д/с № 22\"Алсу\""]
[]
[null,10,"Блюдо","С 3 лет","до 7 лет"]
[{"$nulls":3},"грамм","ккал"]
[null,"Завтрак/иртәнге аш","Каша геркулесовая молочная с маслом сливочным","180/5",251.91]
[null,null,"Кофейный напиток с молоком","180/6",42.67]
[null,null,"Бутерброд с маслом сливочным","30/5",{"v":111.6,"d":"111.60"}]
[null,"09.00","Сок","180",{"v":96,"d":"96.0"}]
[null,"Обед/төшке аш","Салат из свеклы с сыром","60",78.42]
[null,null,"Рассольник ленинградский с куриными фрикадельками, со сметаной","180/11/7",117.51]
[null,null,"Котлеты рыбные с маслом сливочным","70/3",144.36]
[null,null,"Макаронные изделия отварные с овощами","130",163.28]
[null,null,"Кисель","180",75.24]
[null,null,"хлеб пшеничный","25",58.75]
[null,null,"Хлеб ржаной","45",{"v":89.1,"d":"89.10"}]
[null,"Полдник/төштән соңгы аш","Молоко кипяченое","180",{"v":96.3,"d":"96.30"}]
[null,null,"Кондитерские изделия (печенье)","20",{"v":90.2,"d":"90.20"}]
[null,"Ужин/кичке аш","Капуста тушеная с мясом ","180",{"v":250.3,"d":"250.30"}]
[null,null,"Напиток из шиповника","180/6",79.38]
[null,null,"Хлеб пшеничный","30",{"v":70.5,"d":"70.50"}]
[{"$nulls":3},"152,36 руб",{"$f":"E28+E27+E26+E25+E24+E23+E22+E21+E20+E19+E18+E17+E16+E15+E14+E13","v":1815.52}]

{"sheet":"2 сентября","index":44,"n_rows":30,"n_cols":5,"rows_kept":30}
[]
[null,"Согласно контракту"]
[null,"№2024.617"]
[null,"от 23.12.2023 г."]
[]
[]
[null,null,"1 день"]
[]
[null,"Д/сад","МБДОУ \"ЦРР-д/с № 22\"Алсу\""]
[]
[null,10,"Блюдо","С 3 лет","до 7 лет"]
[{"$nulls":3},"грамм","ккал"]
[null,"Завтрак/иртәнге аш","Каша Дружба молочная с маслом сливочным","180/5",{"v":207.6,"d":"207.60"}]
[null,null,"Кофейный напиток с молоком","180/6",42.67]
[null,null,"Бутерброд с маслом сливочным","30/5",{"v":111.6,"d":"111.60"}]
[null,"09.00","Яблоко","100",{"v":47,"d":"47.0"}]
[null,"Обед/төшке аш","Салат из моркови","60",{"v":34.8,"d":"34.80"}]
[null,null,"Суп вермишелевый с картофелем с мясными фрикадельками","180/15",114.56]
[null,null,"Котлеты рубленные из говядины","70",211.06]
[null,null,"Каша гречневая вязкая с маслом сливочным","130/3",145.86]
[null,null,"Напиток из сухофруктов","180",68.18]
[null,null,"Хлеб ржаной","45",{"v":89.1,"d":"89.10"}]
[null,null,"Хлеб пшеничный","25",58.75]
[null,"Полдник/төштән соңгы аш","Кефир","180",{"v":90,"d":"90.00"}]
[null,null,"Вафли","20",{"v":192,"d":"192.00"}]
[null,"Ужин/кичке аш","Котлеты рыбные ","70",124.56]
[null,null,"Пюре картофельное","140",{"v":128.1,"d":"128.10"}]
[null,null,"Чай с сахаром","180/6",{"v":24.1,"d":"24.10"}]
[null,null,"Хлеб пшеничный","30",{"v":70.5,"d":"70.50"}]
[{"$nulls":3},"152,36 руб",{"$f":"E29+E28+E27+E26+E25+E24+E23+E22+E21+E20+E19+E18+E17+E16+E15+E14+E13","v":{"v":1760.4399999999998,"d":"1760.44"}}]

{"sheet":"3 сентября","index":45,"n_rows":28,"n_cols":5,"rows_kept":28}
[]
[null,"Согласно контракту"]
[null,"№2024.617"]
[null,"от 23.12.2023 г."]
[]
[null,null,"2 день"]
[]
[]
[null,"Д/сад","МБДОУ \"ЦРР-д/с № 22\"Алсу\""]
[]
[null,10,"Блюдо","С 3 лет","до 7 лет"]
[{"$nulls":3},"грамм","ккал"]
[null,"Завтрак/иртәнге аш","Каша полбяная молочная с маслом сливочным","180/3",202.64]
[null,null,"какао с молоком","180",58.83]
[null,null,"Бутерброд с сыром, маслом сливочным","30/5/5",128.77]
[null,"09.00","Сок","180",94.4]
[null,"Обед/төшке аш","Салат из картофеля с солеными огурцами","60",66.84]
[null,null,"Борщ со свежей капустой, картофелем на курином б-не, с куриными фрикадельками, со сметаной","180/10/7",106.63]
[null,null,"Фрикадельки куриные в молочном соусе","50/25",{"v":136.3,"d":"136.30"}]
[null,null,"Макароны отварны с маслом сливочным","130/3",155.22]
[null,null,"Компот из свежих яблок","180",55.26]
[null,null,"Хлеб пшеничный","25",58.75]
[null,null,"Хлеб ржаной","45",{"v":89.1,"d":"89.10"}]
[null,"Полдник/төштән соңгы аш","Ряженка","180",{"v":91.8,"d":"91.80"}]
[null,null,"Булочка дорожная","50",{"v":165.5,"d":"165.50"}]
[null,"Ужин/кичке аш","Запеканка творожная с повидлом","120/30",{"v":418.5,"d":"418.50"}]
[null,null,"Чай с сахаром и лимоном","180/6/7",26.48]
[{"$nulls":3},"152,36 руб",{"$f":"E27+E26+E25+E24+E23+E22+E21+E20+E18+E19+E17+E16+E15+E14","v":{"v":1652.3799999999997,"d":"1652.38"}}]

{"sheet":"4 сентября","index":46,"n_rows":29,"n_cols":5,"rows_kept":29}
[]
[null,"Согласно контракту"]
[null,"№2024.617"]
[null,"от 23.12.2023 г."]
[]
[null,null,"3 день"]
[]
[]
[null,"Д/сад","МБДОУ \"ЦРР-д/с № 22\"Алсу\""]
[]
[null,10,"Блюдо","С 3 лет","до 7 лет"]
[{"$nulls":3},"грамм","ккал"]
[null,"Завтрак/иртәнге аш","Каша кукурузная молочная с маслом сливочным","180/5",274.16]
[null,null,"Чай с сахаром и молоком","180/6",72.7]
[null,null,"Бутерброд с маслом сливочным","30/5",{"v":111.6,"d":"111.60"}]
[null,"09.00","Яблоко","100",{"v":47,"d":"47.0"}]
[null,"Обед/төшке аш","Салат из припущенной моркови с яблоками60","60",24.24]
[null,null,"Суп картофельный гороховый на мясном б-не с мясом","180/10",121.57]
[null,null,"плов из отварной говядины","200",{"v":396,"d":"396.00"}]
[null,null,"Компот из урюка","180",{"v":68.2,"d":"68.20"}]
[null,null,"Хлеб пшеничный","25",58.75]
[null,null,"Хлеб ржаной","45",{"v":89.1,"d":"89.10"}]
[null,"Полдник/төштән соңгы аш","Молоко кипяченое","180",75.24]
[null,null,"Печенье","20",{"v":89.1,"d":"89.10"}]
[null,"Ужин/кичке аш","Фрикадельки рыбный отварные","80",{"v":88,"d":"88.00"}]
[null,null,"Картофель тушеный с овощами в соусе","140",{"v":201.6,"d":"201.60"}]
[null,null,"Напиток из шиповника","180/6",79.38]
[null,null,"Хлеб пшеничный","30",{"v":70.5,"d":"70.50"}]
[{"$nulls":3},"152,36 руб",{"$f":"E28+E27+E26+E25+E24+E23+E22+E21+E20+E19+E18+E17+E16+E15+E14+E13","v":1867.14}]

{"sheet":"5 сентября","index":47,"n_rows":28,"n_cols":5,"rows_kept":28}
[]
[null,"Согласно контракту"]
[null,"№2024.617"]
[null,"от 23.12.2023 г."]
[]
[]
[null,null,"4 день"]
[]
[null,"Д/сад","МБДОУ \"ЦРР-д/с № 22\"Алсу\""]
[]
[null,10,"Блюдо","С 3 лет","до 7 лет"]
[{"$nulls":3},"грамм","ккал"]
[null,"Завтрак/иртәнге аш","Каша ячневая молочная с маслом сливочным","180/3",223.41]
[null,null,"Кофейный напиток с молоком","180/6",42.67]
[null,null,"Бутерброд с маслом сливочным, повидлом","30/5/10",{"v":119.8,"d":"119.80"}]
[null,"09.00","Сок","180",94.4]
[null,"Обед/төшке аш","Салат из зеленого горошка к/с","50",{"v":41.8,"d":"41.80"}]
[null,null,"Суп картофельный с пшенной крупой на курином б-не, с мясом птицы","180/10",76.57]
[null,null,"птица, тушенная с соусе с овощами","200",{"v":264,"d":"264.00"}]
[null,null,"Компот из изюма и яблок","180",{"v":108,"d":"108.00"}]
[null,null,"Хлеб пшеничный","225",58.75]
[null,null,"Хлеб ржаной","45",{"v":89.1,"d":"89.10"}]
[null,"Полдник/төштән соңгы аш","Кефир","180",{"v":90,"d":"90.00"}]
[null,null,"Кондитерские изделия (печенье)","20",{"v":90.2,"d":"90.20"}]
[null,"Ужин/кичке аш","Омлет натуральный с сыром","150",{"v":347.5,"d":"347.50"}]
[null,null,"Чай с сахаром","180/6",{"v":24.1,"d":"24.10"}]
[null,null,"Хлеб пшеничный","30",{"v":70.5,"d":"70.50"}]
[{"$nulls":3},"152,36 руб",{"$f":"E27+E26+E25+E24+E23+E22+E21+E20+E19+E18+E17+E16+E15+E14+E13","v":{"v":1740.8000000000002,"d":"1740.80"}}]

{"sheet":"6 сентября","index":48,"n_rows":27,"n_cols":5,"rows_kept":27}
[]
[null,"Согласно контракту"]
[null,"№2024.617"]
[null,"от 23.12.2023 г."]
[]
[null,null,"5 день"]
[]
[]
[null,"Д/сад","МБДОУ \"ЦРР-д/с № 22\"Алсу\""]
[]
[null,10,"Блюдо","С 3 лет","до 7 лет"]
[{"$nulls":3},"грамм","ккал"]
[null,"Завтрак/иртәнге аш","Суп молочный с геркулесовой крупой ","200",{"v":71.2,"d":"71.20"}]
[null,null,"какао с молоком","180",58.83]
[null,null,"Бутерброд с сыром, маслом сливочным","30/5/5",128.77]
[null,"09.00","Яблоко","100",{"v":47,"d":"47.0"}]
[null,"Обед/төшке аш","Салат из свеклы отварной","50",{"v":46.4,"d":"46.40"}]
[null,null,"Рассольник домашний на курином б-не, с куриными фрикадельками со сметаной","180/11/5",119.17]
[null,null,"Запеканка картофельная с мясом птицы со сметанным соусом","150/30",243.48]
[null,null,"Кисель","180",75.24]
[null,null,"Хлеб пшеничный","25",58.75]
[null,null,"Хлеб ржаной","45",{"v":89.1,"d":"89.10"}]
[null,"Полдник/төштән соңгы аш","Молоко кипяченое","180",75.24]
[null,null,"Печенье","20",{"v":89.1,"d":"89.10"}]
[null,"Ужин/кичке аш","Эч-почмак с говядиной","100",414.29]
[null,null,"Чай с сахаром и лимоном","180/6/7",26.48]
[{"$nulls":3},"152,36 руб",{"$f":"E26+E25+E24+E23+E22+E21++E19+E18+E17+E16+E15+E14+E13","v":{"v":1467.8100000000002,"d":"1467.81"}}]

{"sheet":"9 сентября","index":49,"n_rows":28,"n_cols":5,"rows_kept":28}
[]
[null,"Согласно контракту"]
[null,"№2024.617"]
[null,"от 23.12.2023 г."]
[]
[]
[null,null,"6 день"]
[]
[null,"Д/сад","МБДОУ \"ЦРР-д/с № 22\"Алсу\""]
[]
[null,10,"Блюдо","С 3 лет","до 7 лет"]
[{"$nulls":3},"грамм","ккал"]
[null,"Завтрак/иртәнге аш","Каша пшенная молочная с маслом сливочным","180/3",208.76]
[null,null,"Чай с молоком и сахаром","180/6",75.76]
[null,null,"Бутерброд с маслом сливочным","30/5",{"v":111.6,"d":"111.60"}]
[null,"09.00","Сок","180",94.4]
[null,"Обед/төшке аш","Салат из моркови","60",24.24]
[null,null,"Суп из овощей на курином б-не, с мясными фрикадельками, со сметаной","180/11/7",101.49]
[null,null,"Ежики куриные в сметанно-томатномном соусе","50/25",123.03]
[null,null,"вермишель отварной","130",135.46]
[null,null,"Напиток из сухофруктов","180",{"v":87.5,"d":"87.50"}]
[null,null,"Хлеб пшеничный","25",58.75]
[null,null,"Хлеб ржаной","45",{"v":89.1,"d":"89.10"}]
[null,"Полдник/төштән соңгы аш","Катык","180",91.86]
[null,null,"Булочка с сахаром","50",170.67]
[null,"Ужин/кичке аш","Запеканка творожная с повидлом","120/30",{"v":418.5,"d":"418.50"}]
[null,null,"Напиок из шиповника","180/5",{"v":24.1,"d":"24.10"}]
[{"$nulls":3},"152,36 руб",{"$f":"E27+E26+E25+E24+E23+E22+E20+E19+E18+E17+E16+E15+E14+E13","v":1727.72}]

{"sheet":"10 сентября","index":50,"n_rows":31,"n_cols":5,"rows_kept":31}
[]
[null,"Согласно контракту"]
[null,"№2024.617"]
[null,"от 23.12.2023 г."]
[]
[null,null,"7 день"]
[]
[]
[null,"Д/сад","МБДОУ \"ЦРР-д/с № 22\"Алсу\""]
[]
[null,10,"Блюдо","С 3 лет","до 7 лет"]
[{"$nulls":3},"грамм","ккал"]
[null,"Завтрак/иртәнге аш","Каша кукурузная молочная с маслом сливочным","180/5",274.16]
[null,null,"Кофейный напиток с молоком ","180",42.67]
[null,null,"Бутерброд с маслом сливочным","30/5",{"v":111.6,"d":"111.60"}]
[null,null,"Сыр порционно","10",34.33]
[null,"09.00","Яблоко","100",{"v":47,"d":"47.0"}]
[null,"Обед/төшке аш","Салат из отварной свеклы с маслом растительным","60",53.88]
[null,null,"Суп картофельный с клецками на мясном б-не с мясом","180/10",121.66]
[null,null,"Гуляш из отварной говядины","40/40",{"v":131.2,"d":"131.20"}]
[null,null,"Пюре картофельное","140",{"v":128.1,"d":"128.10"}]
[null,null,"Компот из свежих фруктов","180",55.26]
[null,null,"Хлеб пшеничный","25",58.75]
[null,null,"Хлеб ржаной","45",{"v":89.1,"d":"89.10"}]
[null,"Полдник/төштән соңгы аш","Кефир","180",{"v":90,"d":"90.00"}]
[null,null,"мармелад","10",{"v":83,"d":"83.00"}]
[null,"Ужин/кичке аш","Расстегай с рыбой","100",{"v":325,"d":"325.00"}]
[]
[null,null,"Чай с сахаром и лимоном","180/6/7",26.48]
[]
[{"$nulls":3},"152,36 руб",{"$f":"E29+E27+E26+E25+E24+E23+E21+E20+E19+E18+E17+E15+E14+E13","v":{"v":1582.6000000000004,"d":"1582.60"}}]

{"sheet":"11 сентября","index":51,"n_rows":29,"n_cols":5,"rows_kept":29}
[]
[null,"Согласно контракту"]
[null,"№2024.617"]
[null,"от 23.12.2023 г."]
[]
[]
[null,null,"8 день"]
[]
[null,"Д/сад","МБДОУ \"ЦРР-д/с № 22\"Алсу\""]
[]
[null,10,"Блюдо","С 3 лет","до 7 лет"]
[{"$nulls":3},"грамм","ккал"]
[null,"Завтрак/иртәнге аш","Каша манная молочная с маслом сливочным","180/5",{"v":199.5,"d":"199.50"}]
[null,null,"Какао с молоком ","180/6",58.83]
[null,null,"Бутерброд с маслом сливочным","30/5",{"v":111.6,"d":"111.60"}]
[null,"09.00","Сок","180",96.4]
[null,"Обед/төшке аш","помидоры свежие","60",{"v":13.5,"d":"13.50"}]
[null,null,"Щи со свежей капустой с картофелем на курином б-не, с куриными фрикадельками и со сметаной","180/11/7",104.59]
[null,null,"Биточки домашние","70",{"v":225.4,"d":"225.40"}]
[null,null,"Рис отварной рассыпчатый с маслом сливочным","130/20",192.01]
[null,null,"Компот из изюма","180",{"v":62.1,"d":"62.10"}]
[null,null,"Хлеб пшеничный","25",58.75]
[null,null,"Хлеб ржаной","45",{"v":89.1,"d":"89.10"}]
[null,"Полдник/төштән соңгы аш","Молоко кипяченое","180",{"v":96.3,"d":"96.30"}]
[null,null,"Кондитерские изделия (печенье)","20",{"v":90.2,"d":"90.20"}]
[null,"Ужин/кичке аш","Омлет натуральный","150",335.23]
[null,null,"Чай с сахаром","180/6",{"v":24.1,"d":"24.10"}]
[null,null,"Хлеб пшеничный","30",{"v":70.5,"d":"70.50"}]
[{"$nulls":3},"152,36 руб",{"$f":"E27+E26+E25+E24+E23+E22+E20+E19+E18+E17+E16+E15+E14+E13","v":1695.51}]

{"sheet":"12 сентября","index":52,"n_rows":28,"n_cols":5,"rows_kept":28}
[]
[null,"Согласно контракту"]
[null,"№2024.617"]
[null,"от 23.12.2023 г."]
[]
[]
[null,null,"9 день"]
[]
[null,"Д/сад","МБДОУ \"ЦРР-д/с № 22\"Алсу\""]
[]
[null,10,"Блюдо","С 3 лет","до 7 лет"]
[{"$nulls":3},"грамм","ккал"]
[null,"Завтрак/иртәнге аш","Каша пшеничная молочная с маслом сливочным","180/3",241.16]
[null,null,"Чай с молоком и сахаром","180/6",75.76]
[null,null,"Бутерброд с сыром,  маслом сливочным","30/5/5",128.77]
[null,"09.00","Яблоко","100",{"v":47,"d":"47.0"}]
[null,"Обед/төшке аш","Салат из свежей капусты","60",53.88]
[null,null,"суп лапша домашняя на курином б-не, с мясом птицы","180/10",114.78]
[null,null,"Жаркое из птицы по домашнему","180",303.43]
[null,null,"Напиток из сухофруктов","180",{"v":87.5,"d":"87.50"}]
[null,null,"Хлеб пшеничный","25",58.75]
[null,null,"Хлеб ржаной","45",{"v":89.1,"d":"89.10"}]
[null,"Полдник/төштән соңгы аш","кисломолочный напиток","180",{"v":96.3,"d":"96.30"}]
[null,null,"Кондитерские изделия (печенье)","20",{"v":90.2,"d":"90.20"}]
[null,"Ужин/кичке аш","Ватрушка с творогом","90",404.05]
[null,null,"чай с сахаром и лимоном","180/6/7",26.48]
[]
[{"$nulls":3},"152,36 руб",{"$f":"E26+E25+E24+E23+E22+E21+E20+E19+E18+E17+E16+E15+E14+E13","v":1817.16}]

{"sheet":"13 сентября","index":53,"n_rows":29,"n_cols":5,"rows_kept":29}
[]
[null,"Согласно контракту"]
[null,"№2024.617"]
[null,"от 23.12.2023 г."]
[]
[null,null,"10 день"]
[]
[]
[null,"Д/сад","МБДОУ \"ЦРР-д/с № 22\"Алсу\""]
[]
[null,10,"Блюдо","С 3 лет","до 7 лет"]
[{"$nulls":3},"грамм","ккал"]
[null,"Завтрак/иртәнге аш","Каша геркулесовая молочная с маслом сливочным","180/5",251.91]
[null,null,"Кофейный напиток с молоком","180/6",42.67]
[null,null,"Бутерброд с маслом сливочным","30/5",{"v":111.6,"d":"111.60"}]
[null,"09.00","Сок","180",96.4]
[null,"Обед/төшке аш","Огурцы свежие порционно","60",{"v":15.4,"d":"15.40"}]
[null,null,"Рассольник ленинградский с куриными фрикадельками, со сметаной","180/11/7",117.51]
[null,null,"Котлеты рыбные с маслом сливочным","70/3",144.36]
[null,null,"Макаронные изделия отварные с овощами","130",163.28]
[null,null,"Кисель","180",75.24]
[null,null,"хлеб пшеничный","25",58.75]
[null,null,"Хлеб ржаной","45",{"v":89.1,"d":"89.10"}]
[null,"Полдник/төштән соңгы аш","Молоко кипяченое","180",{"v":96.3,"d":"96.30"}]
[null,null,"Кондитерские изделия (печенье)","20",{"v":90.2,"d":"90.20"}]
[null,"Ужин/кичке аш","Капуста тушеная с мясом ","180",{"v":250.3,"d":"250.30"}]
[null,null,"Напиток из шиповника","180/6",79.38]
[null,null,"Хлеб пшеничный","30",{"v":70.5,"d":"70.50"}]
[{"$nulls":3},"152,36 руб",{"$f":"E28+E27+E26+E25+E24+E23+E22+E21+E20+E19+E18+E17+E16+E15+E14+E13","v":{"v":1752.9,"d":"1752.90"}}]

{"sheet":"16 сентября","index":54,"n_rows":30,"n_cols":5,"rows_kept":30}
[]
[null,"Согласно контракту"]
[null,"№2024.617"]
[null,"от 23.12.2023 г."]
[]
[]
[null,null,"1 день"]
[]
[null,"Д/сад","МБДОУ \"ЦРР-д/с № 22\"Алсу\""]
[]
[null,10,"Блюдо","С 3 лет","до 7 лет"]
[{"$nulls":3},"грамм","ккал"]
[null,"Завтрак/иртәнге аш","Каша Дружба молочная с маслом сливочным","180/5",{"v":207.6,"d":"207.60"}]
[null,null,"Кофейный напиток с молоком","180/6",42.67]
[null,null,"Бутерброд с маслом сливочным","30/5",{"v":111.6,"d":"111.60"}]
[null,"09.00","Яблоко","100",{"v":47,"d":"47.0"}]
[null,"Обед/төшке аш","Помидоры свежие","60",{"v":14.3,"d":"14.30"}]
[null,null,"Суп вермишелевый с картофелем с мясными фрикадельками","180/15",114.56]
[null,null,"Котлеты рубленные из говядины","70",211.06]
[null,null,"Каша Ячневая вязкая с маслом сливочным","130/3",145.86]
[null,null,"Напиток из сухофруктов","180",68.18]
[null,null,"Хлеб ржаной","45",{"v":89.1,"d":"89.10"}]
[null,null,"Хлеб пшеничный","25",58.75]
[null,"Полдник/төштән соңгы аш","Кефир","180",{"v":90,"d":"90.00"}]
[null,null,"Вафли","20",{"v":192,"d":"192.00"}]
[null,"Ужин/кичке аш","Котлеты рыбные ","70",124.56]
[null,null,"Пюре картофельное","140",{"v":128.1,"d":"128.10"}]
[null,null,"Чай с сахаром","180/6",{"v":24.1,"d":"24.10"}]
[null,null,"Хлеб пшеничный","30",{"v":70.5,"d":"70.50"}]
[{"$nulls":3},"152,36 руб",{"$f":"E29+E28+E27+E26+E25+E24+E23+E22+E21+E20+E19+E18+E17+E16+E15+E14+E13","v":{"v":1739.9399999999998,"d":"1739.94"}}]

{"sheet":"17 сентября","index":55,"n_rows":28,"n_cols":5,"rows_kept":28}
[]
[null,"Согласно контракту"]
[null,"№2024.617"]
[null,"от 23.12.2023 г."]
[]
[null,null,"2 день"]
[]
[]
[null,"Д/сад","МБДОУ \"ЦРР-д/с № 22\"Алсу\""]
[]
[null,10,"Блюдо","С 3 лет","до 7 лет"]
[{"$nulls":3},"грамм","ккал"]
[null,"Завтрак/иртәнге аш","Каша полбяная молочная с маслом сливочным","180/3",202.64]
[null,null,"какао с молоком","180",58.83]
[null,null,"Бутерброд с сыром, маслом сливочным","30/5/5",128.77]
[null,"09.00","Сок","180",94.4]
[null,"Обед/төшке аш","Салат из картофеля с солеными огурцами","60",66.84]
[null,null,"Борщ со свежей капустой, картофелем на курином б-не, с куриными фрикадельками, со сметаной","180/10/7",106.63]
[null,null,"Фрикадельки куриные в молочном соусе","50/25",{"v":136.3,"d":"136.30"}]
[null,null,"Макароны отварны с маслом сливочным","130/3",155.22]
[null,null,"Компот из свежих яблок","180",55.26]
[null,null,"Хлеб пшеничный","25",58.75]
[null,null,"Хлеб ржаной","45",{"v":89.1,"d":"89.10"}]
[null,"Полдник/төштән соңгы аш","Ряженка","180",{"v":91.8,"d":"91.80"}]
[null,null,"Булочка дорожная","50",{"v":165.5,"d":"165.50"}]
[null,"Ужин/кичке аш","Запеканка творожная с повидлом","120/30",{"v":418.5,"d":"418.50"}]
[null,null,"Чай с сахаром и лимоном","180/6/7",26.48]
[{"$nulls":3},"152,36 руб",{"$f":"E27+E26+E25+E24+E23+E22+E21+E20+E18+E19+E17+E16+E15+E14","v":{"v":1652.3799999999997,"d":"1652.38"}}]

{"sheet":"18 сентября","index":56,"n_rows":29,"n_cols":5,"rows_kept":29}
[]
[null,"Согласно контракту"]
[null,"№2024.617"]
[null,"от 23.12.2023 г."]
[]
[null,null,"3 день"]
[]
[]
[null,"Д/сад","МБДОУ \"ЦРР-д/с № 22\"Алсу\""]
[]
[null,10,"Блюдо","С 3 лет","до 7 лет"]
[{"$nulls":3},"грамм","ккал"]
[null,"Завтрак/иртәнге аш","Каша кукурузная молочная с маслом сливочным","180/5",274.16]
[null,null,"Чай с сахаром и молоком","180/6",72.7]
[null,null,"Бутерброд с маслом сливочным","30/5",{"v":111.6,"d":"111.60"}]
[null,"09.00","Яблоко","100",{"v":47,"d":"47.0"}]
[null,"Обед/төшке аш","Салат из моркови","60",24.24]
[null,null,"Суп картофельный гороховый на мясном б-не с мясом","180/10",121.57]
[null,null,"плов из отварной говядины","200",{"v":396,"d":"396.00"}]
[null,null,"Компот из урюка","180",{"v":68.2,"d":"68.20"}]
[null,null,"Хлеб пшеничный","25",58.75]
[null,null,"Хлеб ржаной","45",{"v":89.1,"d":"89.10"}]
[null,"Полдник/төштән соңгы аш","Молоко кипяченое","180",75.24]
[null,null,"Печенье","20",{"v":89.1,"d":"89.10"}]
[null,"Ужин/кичке аш","Фрикадельки рыбный отварные","80",{"v":88,"d":"88.00"}]
[null,null,"Картофель тушеный с овощами в соусе","140",{"v":201.6,"d":"201.60"}]
[null,null,"Напиток из шиповника","180/6",79.38]
[null,null,"Хлеб пшеничный","30",{"v":70.5,"d":"70.50"}]
[{"$nulls":3},"152,36 руб",{"$f":"E28+E27+E26+E25+E24+E23+E22+E21+E20+E19+E18+E17+E16+E15+E14+E13","v":1867.14}]

{"sheet":"19 сентября","index":57,"n_rows":28,"n_cols":5,"rows_kept":28}
[]
[null,"Согласно контракту"]
[null,"№2024.617"]
[null,"от 23.12.2023 г."]
[]
[]
[null,null,"4 день"]
[]
[null,"Д/сад","МБДОУ \"ЦРР-д/с № 22\"Алсу\""]
[]
[null,10,"Блюдо","С 3 лет","до 7 лет"]
[{"$nulls":3},"грамм","ккал"]
[null,"Завтрак/иртәнге аш","Каша ячневая молочная с маслом сливочным","180/3",223.41]
[null,null,"Кофейный напиток с молоком","180/6",42.67]
[null,null,"Бутерброд с маслом сливочным, повидлом","30/5/10",{"v":119.8,"d":"119.80"}]
[null,"09.00","Сок","180",94.4]
[null,"Обед/төшке аш","Помидоры свежие","60",{"v":14.3,"d":"14.30"}]
[null,null,"Суп картофельный с пшенной крупой на курином б-не, с мясом птицы","180/10",76.57]
[null,null,"птица, тушенная с соусе с овощами","200",{"v":264,"d":"264.00"}]
[null,null,"Компот из изюма и яблок","180",{"v":108,"d":"108.00"}]
[null,null,"Хлеб пшеничный","225",58.75]
[null,null,"Хлеб ржаной","45",{"v":89.1,"d":"89.10"}]
[null,"Полдник/төштән соңгы аш","Кефир","180",{"v":90,"d":"90.00"}]
[null,null,"Кондитерские изделия (печенье)","20",{"v":90.2,"d":"90.20"}]
[null,"Ужин/кичке аш","Омлет натуральный с сыром","150",{"v":347.5,"d":"347.50"}]
[null,null,"Чай с сахаром","180/6",{"v":24.1,"d":"24.10"}]
[null,null,"Хлеб пшеничный","30",{"v":70.5,"d":"70.50"}]
[{"$nulls":3},"152,36 руб",{"$f":"E27+E26+E25+E24+E23+E22+E21+E20+E19+E18+E17+E16+E15+E14+E13","v":{"v":1713.3000000000002,"d":"1713.30"}}]

{"sheet":"20 сентября","index":58,"n_rows":28,"n_cols":5,"rows_kept":28}
[]
[null,"Согласно контракту"]
[null,"№2024.617"]
[null,"от 23.12.2023 г."]
[]
[null,null,"5 день"]
[]
[]
[null,"Д/сад","МБДОУ \"ЦРР-д/с № 22\"Алсу\""]
[]
[null,10,"Блюдо","С 3 лет","до 7 лет"]
[{"$nulls":3},"грамм","ккал"]
[null,"Завтрак/иртәнге аш","Суп молочный с геркулесовой крупой ","200",{"v":71.2,"d":"71.20"}]
[null,null,"какао с молоком","180",58.83]
[null,null,"Бутерброд с сыром, маслом сливочным","30/5/5",128.77]
[null,"09.00","Яблоко","100",{"v":47,"d":"47.0"}]
[null,"Обед/төшке аш","Огурцы свежие","60",{"v":14.3,"d":"14.30"}]
[null,null,"Рассольник домашний на курином б-не, с куриными фрикадельками со сметаной","180/11/5",119.17]
[null,null,"Рис отварнйой рассыпчатый","130/2",{"v":118,"d":"118.00"}]
[null,null,"бефстроганов из отварной говядины","40/40",243.48]
[null,null,"Кисель","180",75.24]
[null,null,"Хлеб пшеничный","25",58.75]
[null,null,"Хлеб ржаной","45",{"v":89.1,"d":"89.10"}]
[null,"Полдник/төштән соңгы аш","Молоко кипяченое","180",75.24]
[null,null,"Печенье","20",{"v":89.1,"d":"89.10"}]
[null,"Ужин/кичке аш","Эч-почмак с говядиной","100",414.29]
[null,null,"Чай с сахаром и лимоном","180/6/7",26.48]
[{"$nulls":3},"152,36 руб",{"$f":"E27+E26+E25+E24+E23+E22++E20+E18+E17+E16+E15+E14+E13","v":1435.71}]

{"sheet":"23 сентября","index":59,"n_rows":28,"n_cols":5,"rows_kept":28}
[]
[null,"Согласно контракту"]
[null,"№2024.617"]
[null,"от 23.12.2023 г."]
[]
[]
[null,null,"6 день"]
[]
[null,"Д/сад","МБДОУ \"ЦРР-д/с № 22\"Алсу\""]
[]
[null,10,"Блюдо","С 3 лет","до 7 лет"]
[{"$nulls":3},"грамм","ккал"]
[null,"Завтрак/иртәнге аш","Каша пшенная молочная с маслом сливочным","180/3",208.76]
[null,null,"Чай с молоком и сахаром","180/6",75.76]
[null,null,"Бутерброд с маслом сливочным","30/5",{"v":111.6,"d":"111.60"}]
[null,"09.00","Сок","180",94.4]
[null,"Обед/төшке аш","Салат из моркови","60",24.24]
[null,null,"Суп из овощей на курином б-не, с мясными фрикадельками, со сметаной","180/11/7",101.49]
[null,null,"Ежики куриные в сметанно-томатномном соусе","50/25",123.03]
[null,null,"вермишель отварной","130",135.46]
[null,null,"Напиток из сухофруктов","180",{"v":87.5,"d":"87.50"}]
[null,null,"Хлеб пшеничный","25",58.75]
[null,null,"Хлеб ржаной","45",{"v":89.1,"d":"89.10"}]
[null,"Полдник/төштән соңгы аш","Катык","180",91.86]
[null,null,"Булочка с сахаром","50",170.67]
[null,"Ужин/кичке аш","Запеканка творожная с повидлом","120/30",{"v":418.5,"d":"418.50"}]
[null,null,"Напиок из шиповника","180/5",{"v":24.1,"d":"24.10"}]
[{"$nulls":3},"152,36 руб",{"$f":"E27+E26+E25+E24+E23+E22+E20+E19+E18+E17+E16+E15+E14+E13","v":1727.72}]

{"sheet":"24 сентября","index":60,"n_rows":31,"n_cols":5,"rows_kept":31}
[]
[null,"Согласно контракту"]
[null,"№2024.617"]
[null,"от 23.12.2023 г."]
[]
[null,null,"7 день"]
[]
[]
[null,"Д/сад","МБДОУ \"ЦРР-д/с № 22\"Алсу\""]
[]
[null,10,"Блюдо","С 3 лет","до 7 лет"]
[{"$nulls":3},"грамм","ккал"]
[null,"Завтрак/иртәнге аш","Каша кукурузная молочная с маслом сливочным","180/5",274.16]
[null,null,"Кофейный напиток с молоком ","180",42.67]
[null,null,"Бутерброд с маслом сливочным","30/5",{"v":111.6,"d":"111.60"}]
[null,null,"Сыр порционно","10",34.33]
[null,"09.00","Сок","180",94.4]
[null,"Обед/төшке аш","Салат из отварной свеклы с маслом расстительным","60",53.88]
[null,null,"Суп картофельный с клецками на мясном б-не с мясом","180/10",121.66]
[null,null,"Гуляш из отварной говядины","40/40",{"v":131.2,"d":"131.20"}]
[null,null,"Пюре картофельное","140",{"v":128.1,"d":"128.10"}]
[null,null,"Компот из свежих фруктов","180",55.26]
[null,null,"Хлеб пшеничный","25",58.75]
[null,null,"Хлеб ржаной","45",{"v":89.1,"d":"89.10"}]
[null,"Полдник/төштән соңгы аш","Кефир","180",{"v":90,"d":"90.00"}]
[null,null,"мармелад","10",{"v":83,"d":"83.00"}]
[null,"Ужин/кичке аш","Расстегай с рыбой","100",{"v":420,"d":"420.00"}]
[]
[null,null,"Чай с сахаром и лимоном","180/6/7",26.48]
[]
[{"$nulls":3},"152,36 руб",{"$f":"E29+E27+E26+E25+E24+E23+E21+E20+E19+E18+E17+E15+E14+E13","v":{"v":1725.0000000000005,"d":"1725.00"}}]

{"sheet":"25 сентября","index":61,"n_rows":29,"n_cols":5,"rows_kept":29}
[]
[null,"Согласно контракту"]
[null,"№2024.617"]
[null,"от 23.12.2023 г."]
[]
[]
[null,null,"8 день"]
[]
[null,"Д/сад","МБДОУ \"ЦРР-д/с № 22\"Алсу\""]
[]
[null,10,"Блюдо","С 3 лет","до 7 лет"]
[{"$nulls":3},"грамм","ккал"]
[null,"Завтрак/иртәнге аш","Каша манная молочная с маслом сливочным","180/5",{"v":199.5,"d":"199.50"}]
[null,null,"Какао с молоком ","180/6",58.83]
[null,null,"Бутерброд с маслом сливочным","30/5",{"v":111.6,"d":"111.60"}]
[null,"09.00","Сок","180",97.4]
[null,"Обед/төшке аш","Помидоры свежие","60",{"v":14.3,"d":"14.30"}]
[null,null,"Щи со свежей капустой с картофелем на курином б-не, с куриными фрикадельками и со сметаной","180/11/7",104.59]
[null,null,"Биточки домашние","70",{"v":225.4,"d":"225.40"}]
[null,null,"Рис отварной рассыпчатый с маслом сливочным","130/20",192.01]
[null,null,"Компот из изюма","180",{"v":62.1,"d":"62.10"}]
[null,null,"Хлеб пшеничный","25",58.75]
[null,null,"Хлеб ржаной","45",{"v":89.1,"d":"89.10"}]
[null,"Полдник/төштән соңгы аш","Молоко кипяченое","180",{"v":96.3,"d":"96.30"}]
[null,null,"Кондитерские изделия (печенье)","20",{"v":90.2,"d":"90.20"}]
[null,"Ужин/кичке аш","Омлет натуральный","150",335.23]
[null,null,"Чай с сахаром","180/6",{"v":24.1,"d":"24.10"}]
[null,null,"Хлеб пшеничный","30",{"v":70.5,"d":"70.50"}]
[{"$nulls":3},"152,36 руб",{"$f":"E27+E26+E25+E24+E23+E22+E20+E19+E18+E17+E16+E15+E14+E13","v":1697.31}]

{"sheet":"26 сентября","index":62,"n_rows":28,"n_cols":5,"rows_kept":28}
[]
[null,"Согласно контракту"]
[null,"№2024.617"]
[null,"от 23.12.2023 г."]
[]
[]
[null,null,"9 день"]
[]
[null,"Д/сад","МБДОУ \"ЦРР-д/с № 22\"Алсу\""]
[]
[null,10,"Блюдо","С 3 лет","до 7 лет"]
[{"$nulls":3},"грамм","ккал"]
[null,"Завтрак/иртәнге аш","Каша пшеничная молочная с маслом сливочным","180/3",241.16]
[null,null,"Чай с молоком и сахаром","180/6",75.76]
[null,null,"Бутерброд с сыром,  маслом сливочным","30/5/5",128.77]
[null,"09.00","Яблоко","100",{"v":47,"d":"47.0"}]
[null,"Обед/төшке аш","Салат из свежей капусты","60",53.88]
[null,null,"суп лапша домашняя на курином б-не, с мясом птицы","180/10",114.78]
[null,null,"Жаркое из птицы по домашнему","180",303.43]
[null,null,"Напиток из сухофруктов","180",{"v":87.5,"d":"87.50"}]
[null,null,"Хлеб пшеничный","25",58.75]
[null,null,"Хлеб ржаной","45",{"v":89.1,"d":"89.10"}]
[null,"Полдник/төштән соңгы аш","кисломолочный напиток","180",{"v":96.3,"d":"96.30"}]
[null,null,"Кондитерские изделия (печенье)","20",{"v":90.2,"d":"90.20"}]
[null,"Ужин/кичке аш","Ватрушка с творогом","90",404.05]
[null,null,"чай с сахаром и лимоном","180/6/7",26.48]
[]
[{"$nulls":3},"152,36 руб",{"$f":"E26+E25+E24+E23+E22+E21+E20+E19+E18+E17+E16+E15+E14+E13","v":1817.16}]

{"sheet":"27 сентября","index":63,"n_rows":29,"n_cols":5,"rows_kept":29}
[]
[null,"Согласно контракту"]
[null,"№2024.617"]
[null,"от 23.12.2023 г."]
[]
[null,null,"10 день"]
[]
[]
[null,"Д/сад","МБДОУ \"ЦРР-д/с № 22\"Алсу\""]
[]
[null,10,"Блюдо","С 3 лет","до 7 лет"]
[{"$nulls":3},"грамм","ккал"]
[null,"Завтрак/иртәнге аш","Каша геркулесовая молочная с маслом сливочным","180/5",251.91]
[null,null,"Кофейный напиток с молоком","180/6",42.67]
[null,null,"Бутерброд с маслом сливочным","30/5",{"v":111.6,"d":"111.60"}]
[null,"09.00","Сок","180",96.4]
[null,"Обед/төшке аш","Огурцы свежие порционно","60",{"v":15.4,"d":"15.40"}]
[null,null,"Рассольник ленинградский с куриными фрикадельками, со сметаной","180/11/7",117.51]
[null,null,"Котлеты рыбные с маслом сливочным","70/3",144.36]
[null,null,"Макаронные изделия отварные с овощами","130",163.28]
[null,null,"Кисель","180",75.24]
[null,null,"хлеб пшеничный","25",58.75]
[null,null,"Хлеб ржаной","45",{"v":89.1,"d":"89.10"}]
[null,"Полдник/төштән соңгы аш","Молоко кипяченое","180",{"v":96.3,"d":"96.30"}]
[null,null,"Кондитерские изделия (печенье)","20",{"v":90.2,"d":"90.20"}]
[null,"Ужин/кичке аш","Капуста тушеная с мясом ","180",{"v":250.3,"d":"250.30"}]
[null,null,"Напиток из шиповника","180/6",79.38]
[null,null,"Хлеб пшеничный","30",{"v":70.5,"d":"70.50"}]
[{"$nulls":3},"152,36 руб",{"$f":"E28+E27+E26+E25+E24+E23+E22+E21+E20+E19+E18+E17+E16+E15+E14+E13","v":{"v":1752.9,"d":"1752.90"}}]

{"sheet":"30 сентября","index":64,"n_rows":30,"n_cols":5,"rows_kept":30}
[]
[null,"Согласно контракту"]
[null,"№2024.617"]
[null,"от 23.12.2023 г."]
[]
[]
[null,null,"1 день"]
[]
[null,"Д/сад","МБДОУ \"ЦРР-д/с № 22\"Алсу\""]
[]
[null,10,"Блюдо","С 3 лет","до 7 лет"]
[{"$nulls":3},"грамм","ккал"]
[null,"Завтрак/иртәнге аш","Каша Дружба молочная с маслом сливочным","180/5",{"v":207.6,"d":"207.60"}]
[null,null,"Кофейный напиток с молоком","180/6",42.67]
[null,null,"Бутерброд с маслом сливочным","30/5",{"v":111.6,"d":"111.60"}]
[null,"09.00","Яблоко","100",{"v":47,"d":"47.0"}]
[null,"Обед/төшке аш","Помидоры свежие","60",{"v":14.3,"d":"14.30"}]
[null,null,"Суп вермишелевый с картофелем с мясными фрикадельками","180/15",114.56]
[null,null,"Котлеты рубленные из говядины","70",211.06]
[null,null,"Каша Ячневая вязкая с маслом сливочным","130/3",145.86]
[null,null,"Напиток из сухофруктов","180",68.18]
[null,null,"Хлеб ржаной","45",{"v":89.1,"d":"89.10"}]
[null,null,"Хлеб пшеничный","25",58.75]
[null,"Полдник/төштән соңгы аш","Кефир","180",{"v":90,"d":"90.00"}]
[null,null,"Вафли","20",{"v":192,"d":"192.00"}]
[null,"Ужин/кичке аш","Котлеты рыбные ","70",124.56]
[null,null,"Пюре картофельное","140",{"v":128.1,"d":"128.10"}]
[null,null,"Чай с сахаром","180/6",{"v":24.1,"d":"24.10"}]
[null,null,"Хлеб пшеничный","30",{"v":70.5,"d":"70.50"}]
[{"$nulls":3},"152,36 руб",{"$f":"E29+E28+E27+E26+E25+E24+E23+E22+E21+E20+E19+E18+E17+E16+E15+E14+E13","v":{"v":1739.9399999999998,"d":"1739.94"}}]

{"sheet":"1 апреля ","index":65,"n_rows":29,"n_cols":5,"rows_kept":29,"hidden":true}
[]
[null,"Согласно контракту"]
[null,"№2024.617"]
[null,"от 23.12.2023 г."]
[]
[null,null,"10 день"]
[]
[]
[null,"Д/сад","МБДОУ \"ЦРР-д/с № 22\"Алсу\"","День","2024-04-01"]
[]
[null,10,"Блюдо","С 3 лет","до 7 лет"]
[{"$nulls":3},"грамм","ккал"]
[null,"Завтрак/иртәнге аш","Каша геркулесовая молочная с маслом сливочным","180/5",251.91]
[null,null,"Кофейный напиток с молоком","180/6",42.67]
[null,null,"Бутерброд с маслом сливочным","30/5",{"v":111.6,"d":"111.60"}]
[null,"09.00","апельсин","100",{"v":47,"d":"47.0"}]
[null,"Обед/төшке аш","Салат из свеклы с сыром","60",78.42]
[null,null,"Рассольник ленинградский с куриными фрикадельками, со сметаной","180/11/7",117.51]
[null,null,"Котлеты рыбные с маслом сливочным","70/3",144.36]
[null,null,"Макаронные изделия отварные с овощами","130",163.28]
[null,null,"Кисель","180",75.24]
[null,null,"хлеб пшеничный","25",58.75]
[null,null,"Хлеб ржаной","45",{"v":89.1,"d":"89.10"}]
[null,"Полдник/төштән соңгы аш","Молоко кипяченое","180",{"v":96.3,"d":"96.30"}]
[null,null,"Кондитерские изделия (печенье)","20",{"v":90.2,"d":"90.20"}]
[null,"Ужин/кичке аш","Капуста тушеная с мясом ","180",{"v":250.3,"d":"250.30"}]
[null,null,"Напиток из шиповника","180/6",79.38]
[null,null,"Хлеб пшеничный","30",{"v":70.5,"d":"70.50"}]
[{"$nulls":3},"152,36 руб",{"$f":"E28+E27+E26+E25+E24+E23+E22+E21+E20+E19+E18+E17+E16+E15+E14+E13","v":1766.52}]

{"sheet":"2 апреля","index":66,"n_rows":28,"n_cols":5,"rows_kept":28,"hidden":true}
[]
[null,"Согласно контракту"]
[null,"№2024.617"]
[null,"от 23.12.2023 г."]
[]
[null,null,"2 день"]
[]
[]
[null,"Д/сад","МБДОУ \"ЦРР-д/с № 22\"Алсу\"","День","2024-03-02"]
[]
[null,10,"Блюдо","С 3 лет","до 7 лет"]
[{"$nulls":3},"грамм","ккал"]
[null,"Завтрак/иртәнге аш","Каша полбяная молочная с маслом сливочным","180/3",202.64]
[null,null,"какао с молоком","180",58.83]
[null,null,"Бутерброд с сыром, маслом сливочным","30/5/5",128.77]
[null,"09.00","Сок","180",94.4]
[null,"Обед/төшке аш","Салат из картофеля с солеными огурцами","60",66.84]
[null,null,"Борщ со свежей капустой, картофелем на курином б-не, с куриными фрикадельками, со сметаной","180/10/7",106.63]
[null,null,"Фрикадельки куриные в молочном соусе","50/25",{"v":136.3,"d":"136.30"}]
[null,null,"Макароны отварны с маслом сливочным","130/3",155.22]
[null,null,"Компот из свежих яблок","180",55.26]
[null,null,"Хлеб пшеничный","25",58.75]
[null,null,"Хлеб ржаной","45",{"v":89.1,"d":"89.10"}]
[null,"Полдник/төштән соңгы аш","Ряженка","180",{"v":91.8,"d":"91.80"}]
[null,null,"Булочка дорожная","50",{"v":165.5,"d":"165.50"}]
[null,"Ужин/кичке аш","Запеканка творожная с повидлом","120/30",{"v":418.5,"d":"418.50"}]
[null,null,"Чай с сахаром и лимоном","180/6/7",26.48]
[{"$nulls":3},"152,36 руб",{"$f":"E27+E26+E25+E24+E23+E22+E21+E20+E18+E19+E17+E16+E15+E14","v":{"v":1652.3799999999997,"d":"1652.38"}}]